[Event "Caplin Hastings Masters 2023-24"]
[Site "Hastings"]
[Date "2024.01.01"]
[Round "5.2"]
[White "Cherniaev, Alexander"]
[Black "Gasanov, Eldar"]
[Result "1/2-1/2"]
[WhiteElo "2381"]
[BlackElo "2487"]
[Annotator "TA"]
[PlyCount "24"]
[EventDate "2023.12.18"]
[EventType "swiss"]
[EventCountry "ENG"]
[SourceTitle "playchess.com"]
[Source "ChessBase"]
[SourceQuality "1"]
[TimeControl "40/6000+30:3000+30"]

{[%evp 9,19,18,10,0,0,0,14,6,9,23,26,7]} 1. e4 {[%emt 0:00:03]} c5 {[%emt 0:00:28]} 2. c3 {[%emt 0:00:22]} d5 {[%emt 0:00:30]} 3. exd5 {[%emt 0:00:06]} Qxd5 {[%emt 0:00:13]} 4. Nf3 {[%emt 0:00:07]} Nf6 {[%emt 0:00:57]} 5. d4 {[%emt 0:04:01]} e6 {[%emt 0:01:01]} 6. a3 {[%emt 0:06:59] B22: Sicilian: 2 c3.} Be7 {[%emt 0:04:59]} 7. Be3 {[%emt 0:00:14]} cxd4 {[%emt 0:02:29]} 8. cxd4 {[%emt 0:01:21]} O-O {[%emt 0:02:58] 8...Nc6 is vanishing.} 9. Nc3 {[%emt 0:00:09]} Qd6 {[%emt 0:00:50]} 10. Bd3 {[%emt 0:00:12] [#] An uneventful encounter.   Weighted Error Value: White=0.04 (flawless) /Black=0.03 (flawless)} {Predecessor:} Nc6 $146 11. O-O Nd5 12. Qc2 f5 {½-½ Larrea,M (2259)-Acosta,P (2479) Maldonado IM 3rd 2023 (9)} 1/2-1/2

[Event "Caplin Hastings Masters 2023-24"]
[Site "Hastings"]
[Date "2024.01.01"]
[Round "5.3"]
[White "Royal, Shreyas"]
[Black "Willow, Jonah B"]
[Result "1-0"]
[ECO "A06"]
[WhiteElo "2438"]
[BlackElo "2427"]
[Annotator "RC"]
[PlyCount "93"]
[EventDate "2023.12.18"]
[EventType "swiss"]
[EventCountry "ENG"]
[SourceTitle "playchess.com"]
[Source "ChessBase"]
[SourceQuality "1"]
[TimeControl "40/6000+30:3000+30"]

1. Nf3 {[%emt 0:00:05]} d5 {[%emt 0:00:24]} 2. e3 {[%emt 0:00:06]} Nf6 {[%emt 0:01:53]} 3. b3 {[%emt 0:00:06]} c5 {[%emt 0:02:13]} 4. Bb2 {[%emt 0:00:06]} a6 {[%emt 0:03:26]} 5. c4 {[%emt 0:01:35]} e6 {[%emt 0:00:42]} 6. cxd5 {[%emt 0:01:06]} exd5 {[%emt 0:01:31]} 7. g3 {[%emt 0:00:07]} Nc6 {[%emt 0:01:29]} 8. Bg2 {[%emt 0:00:17]} Bf5 {[%emt 0:12:21]} 9. d4 {[%emt 0:04:17]} cxd4 {[%emt 0:03:26]} 10. Nxd4 {[%emt 0:01:39]} Bb4+ {[%emt 0:10:26]} 11. Bc3 {[%emt 0:01:41]} Qa5 {[%emt 0:06:47]} 12. O-O {[%emt 0:00:11]} Bxc3 {[%emt 0:09:06]} 13. Nxc3 {[%emt 0:00:07]} Bg4 {[%emt 0:02:48]} 14. Qe1 {[%emt 0:07:05]} Rd8 {[%emt 0:04:53]} 15. Rc1 {[%emt 0:03:29]} Ne5 {[%emt 0:05:19]} 16. Rc2 {[%emt 0:05:29]} O-O {[%emt 0:03:42]} 17. h3 {[%emt 0:01:34]} Bc8 {[%emt 0:03:15]} 18. Ne4 {[%emt 0:13:48]} Qb6 {[%emt 0:00:55]} 19. Nxf6+ {[%emt 0:00:24]} Qxf6 {[%emt 0:00:01]} 20. Qb4 {[%emt 0:00:22]} h5 {[%emt 0:09:05]} 21. h4 {[%emt 0:01:18]} Bf5 {[%emt 0:00:40]} 22. Nxf5 {[%emt 0:05:10]} Qxf5 {[%emt 0:00:02]} 23. Rd2 {[%emt 0:00:09]} b5 {[%emt 0:07:33]} 24. Rfd1 {[%emt 0:02:02]} Rd7 {[%emt 0:04:47]} 25. Qf4 {[%emt 0:00:56]} Qe6 {[%emt 0:06:24]} 26. Bxd5 {[%emt 0:02:35]} Qe7 {[%emt 0:00:38]} 27. Qg5 {[%emt 0:03:22]} Qxg5 {[%emt 0:00:37]} 28. hxg5 {[%emt 0:00:05]} Rfd8 {[%emt 0:00:03]} 29. Kg2 {[%emt 0:00:09]} Kf8 {[%emt 0:00:25]} 30. Rd4 {[%emt 0:00:40]} a5 {[%emt 0:01:25]} 31. Bf3 {[%emt 0:04:11]} Rxd4 {[%emt 0:01:32]} 32. Rxd4 {[%emt 0:00:54]} Rxd4 {[%emt 0:00:08]} 33. exd4 {[%emt 0:00:05]} Nd3 {[%emt 0:00:05]} 34. Be2 {[%emt 0:00:20]} Ne1+ {[%emt 0:00:46]} 35. Kf1 {[%emt 0:05:04]} Nc2 {[%emt 0:00:03]} 36. d5 {[%emt 0:00:12]} Ke7 {[%emt 0:01:29]} 37. Bxb5 {[%emt 0:00:36]} Nb4 {[%emt 0:00:04]} 38. Bc4 {[%emt 0:00:58]} Nxa2 {[%emt 0:00:04]} 39. d6+ {[%emt 0:01:45]} Kxd6 {[%emt 0:00:03]} 40. Bxf7 {[%emt 0:00:04]} Nc1 {[%emt 0:00:05]} 41. f4 {[%emt 0:50:46]} Ke7 {[%emt 0:54:59]} 42. Bc4 {[%emt 0:00:06]} g6 {[%emt 0:00:04]} 43. Kf2 {[%emt 0:01:00]} Na2 {[%emt 0:00:53]} 44. Ke3 {[%emt 0:00:26]} Nc3 {[%emt 0:01:27]} 45. Kd4 {[%emt 0:00:49]} Nd1 {[%emt 0:01:00]} 46. Be2 {[%emt 0:01:21]} Nf2 {[%emt 0:00:37]} 47. Ke3 {[%emt 0:00:12]} 1-0

[Event "Caplin Hastings Masters 2023-24"]
[Site "Hastings"]
[Date "2024.01.01"]
[Round "5.4"]
[White "Lagarde, Maxime"]
[Black "Derakhshani, Borna"]
[Result "1-0"]
[ECO "B30"]
[WhiteElo "2640"]
[BlackElo "2380"]
[Annotator "TA"]
[PlyCount "73"]
[EventDate "2023.12.18"]
[EventType "swiss"]
[EventCountry "ENG"]
[SourceTitle "playchess.com"]
[Source "ChessBase"]
[SourceQuality "1"]
[TimeControl "40/6000+30:3000+30"]

{[%evp 10,73,21,18,31,0,9,8,25,15,16,-6,7,0,15,20,27,13,0,-16,0,0,0,0,25,11,9,10,11,33,87,0,44,37,39,50,162,81,148,20,57,54,69,56,73,0,0,0,0,0,142,0,145,0,266,208,556,664,653,639,1508,1402,29980,29981,29986,3910]} 1. e4 {[%emt 0:00:05]} c5 {[%emt 0:10:57]} 2. Nf3 {[%emt 0:00:08]} Nc6 {[%emt 0:00:11]} 3. Bb5 {[%emt 0:00:05]} e6 {[%emt 0:00:36]} 4. O-O {[%emt 0:00:08]} Nge7 {[%emt 0:00:07]} 5. Re1 {[%emt 0:00:28]} Ng6 {[%emt 0:03:18]} 6. c3 {[%emt 0:06:26]} a6 {[%emt 0:00:16] B30: Sicilian: 2...Nc6 3 Bb5, lines without ...g6.} 7. Bxc6 {[%emt 0:06:08]} bxc6 {[%emt 0:06:27]} 8. d4 {[%emt 0:00:59]} cxd4 {[%emt 0:03:19] The position is equal.} 9. cxd4 {[%emt 0:00:05]} Be7 {[%emt 0:03:57] [#]} 10. Nbd2 $146 {[%emt 0:03:03]} ({Predecessor:} 10. g3 O-O 11. h4 h6 12. Nc3 Bb7 13. Be3 Rb8 14. h5 Nh8 15. Bf4 Rc8 16. a3 {0-1 Demchenko,A (2619)-Cordova,E (2538) Speed Chess Q2 Sw blitz 2023 (11)}) 10... O-O {[%emt 0:04:30]} 11. Nb3 {[%emt 0:05:16]} d5 {[%emt 0:16:49]} 12. e5 {[%emt 0:03:22]} a5 {[%emt 0:09:50]} 13. Be3 {[%emt 0:07:18]} Ba6 {[%emt 0:06:59]} 14. Rc1 {[%emt 0:08:34]} Bc4 {[%emt 0:08:42]} 15. Nbd2 {[%emt 0:09:10]} Bb5 {[%emt 0:01:11]} 16. g3 {[%emt 0:09:21]} Qb6 {[%emt 0:03:11]} 17. h4 {[%emt 0:02:05][%cal Bh2h4,Bh4h5,Bh5h6][%mdl 32]} Rfc8 {[%emt 0:00:50]} 18. h5 {[%emt 0:02:51]} Nf8 {[%emt 0:00:04]} 19. h6 {[%emt 0:01:29] hxg7 is the strong threat.} g6 {[%emt 0:06:03]} ({Black should play} 19... Bd3 $1 $14) 20. Nb3 {[%emt 0:00:53]} (20. Bg5 $1 $16 {[%cal Rg5e7]} Bd8 21. a4) 20... Nd7 {[%emt 0:01:56]} 21. Nc5 $36 {[%emt 0:01:52][%mdl 2048] Prevents Ba4. White has good play.} Nxc5 {[%emt 0:00:54]} 22. dxc5 {[%emt 0:04:24]} Qa6 {[%emt 0:01:22] Black is weak on the dark squares} ({Better is} 22... Qb7 $14) 23. Bg5 {[%emt 0:05:51]} (23. a4 $1 $18 {[%cal Ra4b5]}) 23... Bf8 {[%emt 0:00:20]} (23... Qb7 $142) 24. Nh2 {[%emt 0:05:26]} ({White must play} 24. a4 $1 $16 {[%cal Ra4b5]}) 24... Rab8 {[%emt 0:05:15]} 25. Ng4 {[%emt 0:00:36] And now Nf6+ would win.} Rc7 {[%emt 0:00:45]} 26. Re3 {[%emt 0:04:15]} a4 {[%emt 0:01:40]} 27. Bf6 {[%emt 0:02:52]} (27. Nf6+ $16 Kh8 28. Ra3) 27... Rcb7 $11 {[%emt 0:03:14]} 28. Bg7 {[%emt 0:04:21]} Bxg7 {[%emt 0:00:17]} 29. hxg7 {[%emt 0:00:04]} h5 {[%emt 0:05:06]} (29... Kxg7 $11 {remains equal.} 30. Qf3 h5) 30. Nf6+ $16 {[%emt 0:07:17]} Kxg7 {[%emt 0:00:01] [#]} 31. g4 $1 {[%emt 0:02:11] White is much more active.} h4 {[%emt 0:00:16][%mdl 8192] [#]} (31... hxg4 $1 $11 {and Black has nothing to worry.} 32. Qxg4 Rh8) 32. Rh3 $1 $18 {[%emt 0:01:20]} Rh8 {[%emt 0:00:06]} (32... g5 33. Qd2 Kg6) 33. Qd2 {[%emt 0:00:06]} Rbb8 {[%emt 0:01:03]} 34. Qg5 {[%emt 0:02:02][%cal Og1g2] Strongly threatening Kg2!} Qa7 {[%emt 0:01:32]} 35. Kg2 {[%emt 0:01:09]} ({And not} 35. Rxh4 Rxh4 36. Qxh4 Rh8 $11) 35... Bf1+ {[%emt 0:05:15]} 36. Rxf1 {[%emt 0:00:34]} Qxc5 {[%emt 0:00:24]} 37. Nd7 {[%emt 0:00:51] Weighted Error Value: White=0.17 (very precise) /Black=0.59} (37. Rxh4 $142 Rxh4 {[%mdl 64] Remove Defender} 38. Qxh4 Rh8 39. Qxh8+ Kxh8 40. g5 Qd4 41. Rh1+ Qh4 42. Rxh4+ Kg7 43. Rh7+ Kf8 44. Rh8+ Kg7 45. Rg8#) 1-0

[Event "Caplin Hastings Masters 2023-24"]
[Site "Hastings"]
[Date "2024.01.01"]
[Round "5.5"]
[White "Arkell, Keith C"]
[Black "Gupta, Abhijeet"]
[Result "0-1"]
[ECO "D76"]
[WhiteElo "2371"]
[BlackElo "2596"]
[Annotator "TA"]
[PlyCount "78"]
[EventDate "2023.12.18"]
[EventType "swiss"]
[EventCountry "ENG"]
[SourceTitle "playchess.com"]
[Source "ChessBase"]
[SourceQuality "1"]
[TimeControl "40/6000+30:3000+30"]

{[%evp 23,78,16,17,10,43,15,17,16,20,0,0,-4,0,-7,0,-57,-57,-56,-55,-54,-56,-58,-53,-68,-56,-87,-79,-108,-83,-135,-137,-193,-197,-511,-454,-504,-510,-571,-564,-578,-564,-552,-487,-647,-620,-932,-932,-29980,-29981,-29981,-29982,-29981,-29982,-29982,-29982,-29982,-29983]} 1. Nf3 {[%emt 0:00:11]} Nf6 {[%emt 0:00:23]} 2. c4 {[%emt 0:00:06]} g6 {[%emt 0:00:11]} 3. Nc3 {[%emt 0:00:27]} Bg7 {[%emt 0:00:06]} 4. d4 {[%emt 0:00:08]} d5 {[%emt 0:00:46]} 5. cxd5 {[%emt 0:00:11]} Nxd5 {[%emt 0:00:04]} 6. g3 {[%emt 0:00:21]} Nb6 {[%emt 0:05:55]} 7. Bg2 {[%emt 0:00:32]} Nc6 {[%emt 0:00:06]} 8. e3 {[%emt 0:00:13]} O-O {[%emt 0:00:07]} 9. O-O {[%emt 0:00:04]} Re8 {[%emt 0:00:03]} 10. b3 {[%emt 0:02:07]} e5 {[%emt 0:03:22]} 11. Nxe5 {[%emt 0:00:15]} Nxe5 {[%emt 0:00:05]} 12. dxe5 {[%emt 0:00:05]} Bxe5 {[%emt 0:00:04] [#] And now ...Qxd1 would win.} 13. Bb2 {[%emt 0:00:12] D76: Fianchetto Grünfeld: Main Line with 7...Nb6.} Qe7 {[%emt 0:03:50]} 14. Qe2 {[%emt 0:07:00]} c6 {[%emt 0:01:00]} 15. Rac1 {[%emt 0:09:07] [#] The position is equal.} h5 $146 {[%emt 0:12:15]} ({Predecessor:} 15... a5 16. Ne4 Bf5 17. Nc5 Bxb2 18. Qxb2 Red8 19. Rfd1 Rxd1+ 20. Rxd1 Qxc5 {0-1 Solon,N (2306)-Artemiev,V (2709) Titled Tuesday intern op 06th Apr blitz 2021 (5)}) 16. h3 {[%emt 0:02:13]} a5 {[%emt 0:03:53]} 17. Rfd1 {[%emt 0:14:43]} Be6 {[%emt 0:09:28]} 18. Rc2 {[%emt 0:10:01]} Bg7 {[%emt 0:09:54]} 19. Rdd2 {[%emt 0:18:00]} ({Better is} 19. Rcc1 $11) 19... a4 $15 {[%emt 0:08:57]} 20. Nxa4 {[%emt 0:00:36]} Nxa4 {[%emt 0:00:09]} 21. bxa4 {[%emt 0:00:40]} Rxa4 {[%emt 0:00:15]} (21... Bxa2 $2 22. Bxg7 Bb3 23. Rb2 $18) 22. Bxg7 {[%emt 0:00:07]} Kxg7 {[%emt 0:00:03]} 23. Rb2 {[%emt 0:05:19]} Rea8 {[%emt 0:00:26]} 24. Rdc2 {[%emt 0:01:42] Black converts the advantage convincingly.} R8a7 {[%emt 0:01:46]} 25. Qd2 {[%emt 0:06:58]} Qf6 {[%emt 0:00:17]} 26. e4 {[%emt 0:01:17]} (26. h4 $142) 26... Qd4 $17 {[%emt 0:04:18] Black is more active.} 27. Qf4 {[%emt 0:17:15]} (27. Qxd4+ $17 Rxd4 28. f4) 27... Rxa2 $19 {[%emt 0:05:06]} 28. Rxa2 $2 {[%emt 0:00:23]} (28. Rd2 Qf6 29. Qxf6+ Kxf6 30. f4) 28... Rxa2 {[%emt 0:00:05]} ({Inferior is} 28... Bxa2 29. Rd2 Qa1+ 30. Kh2 $17) 29. Rxa2 {[%emt 0:00:06]} Bxa2 {[%emt 0:00:03][%mdl 4096] Endgame KQB-KQB} 30. Qc7 {[%emt 0:00:12]} b5 {[%emt 0:01:24][%cal Bb7b5,Bb5b4,Bb4b3,Bb3b2][%mdl 32]} 31. Qxc6 {[%emt 0:06:44]} b4 {[%emt 0:00:12]} 32. e5 {[%emt 0:01:28]} Qxe5 {[%emt 0:01:25] Strongly threatening ...Qe1+.} 33. Be4 {[%emt 0:01:43]} Be6 {[%emt 0:01:56] White must now prevent ...b3.} 34. Qb7 {[%emt 0:02:28]} Qc3 {[%emt 0:02:49]} ({Stronger than} 34... Bxh3 35. Qxb4 Bg4 36. Kg2 $17) 35. Bd5 {[%emt 0:00:41]} Bxd5 {[%emt 0:00:24][%mdl 64] [#] Remove Defender. Black mates.} ({Worse is} 35... Bxh3 36. Qxf7+ Kh6 37. Kh2 $11) 36. Qxd5 {[%emt 0:00:05]} b3 {[%emt 0:00:03]} 37. Kg2 {[%emt 0:01:17]} b2 {[%emt 0:00:03]} 38. Qe4 {[%emt 0:00:06]} Qb3 {[%emt 0:00:19]} 39. Qb1 {[%emt 0:00:26]} Qd5+ {[%emt 0:00:09] Weighted Error Value: White=0.76/Black=0.08 (flawless)} 0-1

[Event "Caplin Hastings Masters 2023-24"]
[Site "Hastings"]
[Date "2024.01.01"]
[Round "5.6"]
[White "Grutter, Tim"]
[Black "Jacobson, Brandon"]
[Result "0-1"]
[ECO "C47"]
[WhiteElo "2342"]
[BlackElo "2538"]
[Annotator "TA"]
[PlyCount "166"]
[EventDate "2023.12.18"]
[EventType "swiss"]
[EventCountry "ENG"]
[SourceTitle "playchess.com"]
[Source "ChessBase"]
[SourceQuality "1"]
[TimeControl "40/6000+30:3000+30"]

{[%evp 9,166,-4,-10,-15,8,11,14,12,16,6,12,1,28,23,35,14,21,8,12,10,12,6,7,0,18,18,27,19,29,32,18,31,11,7,10,11,8,0,3,9,5,0,20,19,16,9,10,0,0,0,7,0,0,0,0,0,0,0,9,9,12,12,12,12,20,12,14,13,14,0,0,-9,0,0,0,-7,-7,-15,0,0,0,0,0,0,0,0,0,0,0,0,0,0,0,0,0,0,0,0,0,-44,-8,-8,-8,-39,0,0,0,0,0,0,0,0,0,0,0,0,0,0,0,0,0,0,0,0,0,0,0,-5600,-5089,-2661,-2367,-29981,-29976,-29976,-29976,-29975,0,-29977,-29978,-29978,-29979,-29979,-29978,-29977,-29979,-29979,-29979,-29978,-69,-29976,-29975,-29981,-29980,-29982,-29982,-29991,-29982,-29982,-29983]} 1. e4 {[%emt 0:00:03]} e5 {[%emt 0:01:08]} 2. Nf3 {[%emt 0:00:14]} Nc6 {[%emt 0:00:12]} 3. Nc3 {[%emt 0:00:07]} Nf6 {[%emt 0:00:13]} 4. h3 {[%emt 0:00:06]} Bb4 {[%emt 0:02:09]} 5. Nd5 {[%emt 0:00:15]} Bc5 {[%emt 0:02:43]} 6. c3 {[%emt 0:00:58] C47: Scotch Four Knights and Four Knights with 4 g3.} O-O {[%emt 0:01:10]} 7. d3 {[%emt 0:03:03] [#]} a5 $146 {[%emt 0:09:55]} ({Predecessor:} 7... h6 8. b4 Bb6 9. Nxf6+ Qxf6 10. g4 d5 11. exd5 Ne7 12. g5 hxg5 13. Bxg5 Qd6 14. Bxe7 Qxe7 {1-0 Shimanov,A (2581)-Mamedyarov,S (2738) ChessKid Cup Play In blitz 2023 (2)}) 8. Bg5 {[%emt 0:04:34] And now Bxf6 would win. The position is equal.} Be7 {[%emt 0:00:08]} 9. Nxe7+ {[%emt 0:06:41]} Qxe7 {[%emt 0:00:06]} 10. Nh4 {[%emt 0:04:59]} Qe6 {[%emt 0:19:53]} (10... h6 $5 {[%cal Rh6g5]} 11. Nf5 Qe6 $11) 11. Qf3 {[%emt 0:08:14]} Ne8 {[%emt 0:07:00]} 12. Be2 {[%emt 0:00:58]} f6 {[%emt 0:08:56]} 13. Be3 {[%emt 0:02:01]} Ne7 {[%emt 0:00:22]} 14. O-O {[%emt 0:08:30]} d5 {[%emt 0:03:30]} 15. Bc5 {[%emt 0:05:13]} Nd6 {[%emt 0:00:43] [#]} 16. Nf5 $1 {[%emt 0:03:24]} Nexf5 {[%emt 0:24:19]} (16... dxe4 17. Nxe7+) 17. exf5 {[%emt 0:00:21]} Qxf5 {[%emt 0:00:03]} 18. Bxd6 {[%emt 0:01:45]} cxd6 {[%emt 0:01:22]} 19. Qxd5+ {[%emt 0:00:12]} Qe6 {[%emt 0:00:04]} 20. Bf3 {[%emt 0:02:22]} Rd8 {[%emt 0:06:12]} 21. d4 {[%emt 0:04:00]} Qxd5 {[%emt 0:02:37]} 22. Bxd5+ {[%emt 0:02:00]} Kf8 $1 {[%emt 0:00:03]} 23. Rad1 {[%emt 0:05:49]} Ke7 {[%emt 0:01:35]} 24. Rd2 {[%emt 0:10:55]} Rb8 {[%emt 0:01:14]} 25. f4 {[%emt 0:03:09]} exf4 {[%emt 0:05:28]} 26. Re2+ {[%emt 0:01:44]} Kf8 {[%emt 0:00:20]} 27. Rxf4 {[%emt 0:00:42]} b5 {[%emt 0:00:05]} 28. Be4 {[%emt 0:03:50]} Re8 {[%emt 0:01:31]} 29. Rff2 {[%emt 0:01:11]} h6 {[%emt 0:06:13]} 30. Bg6 {[%emt 0:05:45][%csl Gg6][%cal Re2e8] [#]} Re6 {[%emt 0:00:05]} 31. a3 {[%emt 0:04:39]} Bd7 {[%emt 0:02:44]} 32. Rxe6 {[%emt 0:01:08]} Bxe6 $11 {[%emt 0:00:02][%mdl 4096] Endgame KRB-KRB} 33. Re2 {[%emt 0:00:14]} Bc4 {[%emt 0:01:30]} 34. Re3 {[%emt 0:00:38]} Rc8 {[%emt 0:00:32]} 35. Kf2 {[%emt 0:00:55]} Bf7 {[%emt 0:00:28]} 36. Bd3 {[%emt 0:08:27]} Rb8 {[%emt 0:00:20]} 37. Re1 {[%emt 0:02:08]} g5 {[%emt 0:02:06]} 38. Rc1 {[%emt 0:03:25]} Bc4 {[%emt 0:01:30]} 39. Ke3 {[%emt 0:01:22]} Kf7 {[%emt 0:00:51]} 40. Kd2 {[%emt 0:02:37]} a4 {[%emt 0:00:33]} 41. Be4 {[%emt 0:05:10]} h5 {[%emt 0:04:52]} 42. Re1 {[%emt 0:08:37]} h4 {[%emt 0:26:16]} 43. Re3 {[%emt 0:02:04]} Rg8 {[%emt 0:12:01]} 44. Bf5 {[%emt 0:01:24]} Bd5 {[%emt 0:00:58]} 45. Ke1 {[%emt 0:00:23]} Rb8 {[%emt 0:02:15]} 46. Kf2 {[%emt 0:02:38]} Rb7 {[%emt 0:00:08]} 47. g3 {[%emt 0:19:00]} hxg3+ {[%emt 0:02:25]} 48. Kxg3 {[%emt 0:00:11]} Rb8 {[%emt 0:00:57]} 49. Re1 {[%emt 0:03:40]} Bc4 {[%emt 0:02:32]} 50. Re3 {[%emt 0:05:32]} Rh8 {[%emt 0:00:42]} 51. Bd7 {[%emt 0:00:52]} Rd8 {[%emt 0:01:51]} 52. Bf5 {[%emt 0:00:15]} Bd5 {[%emt 0:00:44]} 53. Bd3 {[%emt 0:00:55]} Bc6 {[%emt 0:00:30]} 54. c4 {[%emt 0:01:05]} bxc4 {[%emt 0:00:05]} (54... Rb8 $5 {[%cal Rb5c4]}) 55. Bxc4+ {[%emt 0:00:01]} d5 {[%emt 0:00:05]} 56. Ba2 {[%emt 0:01:13]} (56. Be2 $5 {[%cal Re2h5]}) 56... Rb8 {[%emt 0:01:39]} 57. b3 {[%emt 0:00:44]} f5 {[%emt 0:00:31] Threatens to win with ...f4+.} 58. Rc3 {[%emt 0:00:28]} Bd7 {[%emt 0:00:16]} 59. bxa4 {[%emt 0:01:39]} f4+ {[%emt 0:00:37]} 60. Kf3 {[%emt 0:00:01]} Bxh3 {[%emt 0:00:30]} 61. Bxd5+ {[%emt 0:00:24]} Ke7 {[%emt 0:00:02]} 62. Ke4 {[%emt 0:02:58]} Bg2+ {[%emt 0:01:01]} 63. Ke5 {[%emt 0:00:05]} Bxd5 {[%emt 0:00:03]} 64. Kxd5 {[%emt 0:00:04] KR-KR} g4 {[%emt 0:00:46] Strongly threatening ...f3.} 65. Rc7+ {[%emt 0:03:49]} Kf6 {[%emt 0:00:24]} 66. Ke4 {[%emt 0:00:30]} f3 {[%emt 0:00:04]} (66... Rd8 $5 {[%cal Rf4f3]}) 67. Kf4 $1 {[%emt 0:00:23]} Rb1 {[%emt 0:01:01] ( -> ...f2)} (67... f2 $5 68. Rc1 $8 Rd8 $11) 68. Kg3 $2 {[%emt 0:01:12][%mdl 8192]} (68. Kxg4 f2 69. Rc8 Ke7 70. Rc7+ Kd6 71. Rf7 f1=Q 72. Rxf1 Rxf1 73. Kg5 Kd5 74. a5 Kxd4 75. a6 Ra1 76. Kg4 Rxa3 77. Kf4 Rxa6 78. Kf5 Rb6 79. Kf4 Rf6+ 80. Kg5 Ke5 81. Kg4 Rf7 82. Kg3 Ke4 83. Kg4 Rg7+ 84. Kh5 Kf5 85. Kh4 Rg6 86. Kh3 Kf4 87. Kh2 Kf3 88. Kh1 Kf2 89. Kh2 Rh6#) (68. Rc2 $11) 68... Rg1+ $19 {[%emt 0:00:09]} 69. Kf2 {[%emt 0:00:17]} Rg2+ {[%emt 0:00:02]} 70. Kf1 {[%emt 0:00:11]} g3 {[%emt 0:00:20]} 71. Rc8 {[%emt 0:00:43]} Rf2+ {[%emt 0:01:37]} 72. Kg1 {[%emt 0:00:07]} Rg2+ {[%emt 0:00:33]} 73. Kf1 {[%emt 0:00:07]} Kf5 {[%emt 0:00:06]} 74. Rf8+ {[%emt 0:00:35]} Ke4 {[%emt 0:00:05]} 75. Re8+ {[%emt 0:00:23]} Kd3 {[%emt 0:00:03]} 76. Rf8 {[%emt 0:01:25]} Ke3 {[%emt 0:00:08]} ({And not} 76... Kxd4 77. Rxf3 Ra2 78. Rxg3 $11) 77. Re8+ {[%emt 0:00:08]} Kd2 {[%emt 0:00:04]} 78. Rg8 {[%emt 0:00:40]} Rf2+ {[%emt 0:02:00]} 79. Kg1 {[%emt 0:00:02] Now White is beyond hope.} Ke2 {[%emt 0:00:26][%csl Ge2][%cal Rf2f1] Black mates.} 80. Rxg3 {[%emt 0:00:19]} Rf1+ {[%emt 0:00:04]} 81. Kh2 {[%emt 0:00:03]} f2 {[%emt 0:00:03]} 82. Rg8 {[%emt 0:01:38]} Ra1 {[%emt 0:00:41]} 83. Re8+ {[%emt 0:00:20]} Kd3 {[%emt 0:00:04] Weighted Error Value: White=0.05 (flawless) /Black=0.05 (flawless)} 0-1